Cogmind - Beta 10.2 @@@ ROGUE MODE // 2021.01.14 @ 06:15:02 Player: T-100 Result: Self-destructed Performance ------------- Evolutions (1) 500 Regions Visited (3) 600 Robots Destroyed (39) 195 Value Destroyed (1141) 1141 Prototype IDs (0) 0 Alien Tech Used (0) 0 Bonus (0) 0 TOTAL SCORE: 2436 Bonus ------- None Cogmind --------- Core Integrity 40/400 Matter 288/300 Energy 100/100 System Corruption 0% Temperature Cool (0) Movement Core (1100) Ox21 Location -9/Storage Parts ------- > --- POWER (1) -------- (None) > --- PROPULSION (4) --- (None) > --- UTILITY (2) ------ High-capacity Storage Unit High-capacity Storage Unit > --- WEAPON (2) ------- (None) > --- INVENTORY (20) --- Improved Ion Engine Light Nuclear Core Heat Sink Heat Sink ECM Suite Light Armor Plating Medium Armor Plating Hacking Suite Drone Bay (2/2) Drone Bay (2/2) Drone Bay (2/2) Drone Bay (2/2) EM Pulse Gun Beam Rifle Particle Gun Advanced Beam Cannon Heavy Assault Rifle Heavy Assault Rifle Light Cannon Peak State ------------ > --- POWER ------------ Light Ion Engine > --- PROPULSION ------- Light Treads Aluminum Leg Aluminum Leg Aluminum Leg > --- UTILITY ---------- Large Storage Unit High-capacity Storage Unit > --- WEAPON ----------- Spread Laser Heavy Assault Rifle > --- INVENTORY -------- Improved Ion Engine Improved Ion Engine Light Nuclear Core Heat Sink Heat Sink ECM Suite Light Armor Plating Medium Armor Plating Hacking Suite Drone Bay Drone Bay Drone Bay Drone Bay EM Pulse Gun Particle Gun Heavy Assault Rifle Light Cannon [Rating: 15] Favorites ----------- Power Light Ion Engine Engine Light Ion Engine Propulsion Aluminum Leg Treads Light Treads Leg Aluminum Leg Utility High-capacity Storage Unit Device Heat Sink Storage High-capacity Storage Unit Weapon Assault Rifle Energy Gun EM Pulse Gun Ballistic Gun Assault Rifle Ballistic Cannon Improved Light Cannon Build | -11 -10 -9 -9 ------- Run | Scr Mat Mat Sto Slots Evolved 2 | . . 2 . Power . | . . . . Propulsion 2 | . . 2 . Utility . | . . . . Weapon . | . . . . Parts Attached 28 | 6 4 7 11 Power 4 | 1 . 1 2 Engine 4 | 1 . 1 2 Core . | . . . . Reactor . | . . . . Propulsion 12 | 2 . 5 5 Treads 1 | . . . 1 Leg 11 | 2 . 5 4 Wheel . | . . . . Hover . | . . . . Flight . | . . . . Utility 7 | 1 4 . 2 Device 2 | . 2 . . Storage 5 | 1 2 . 2 Processor . | . . . . Hackware . | . . . . Protection . | . . . . Artifact . | . . . . Weapon 5 | 2 . 1 2 Energy Gun 2 | 1 . . 1 Energy Cannon . | . . . . Ballistic Gun 2 | 1 . . 1 Ballistic Cannon 1 | . . 1 . Launcher . | . . . . Special Weapon . | . . . . Impact Weapon . | . . . . Slashing Weapon . | . . . . Piercing Weapon . | . . . . Special Melee Weapon . | . . . . Unidentified Prototypes . | . . . . Parts Lost 18 | . 1 3 14 Power 3 | . . 1 2 Propulsion 11 | . . 2 9 Utility 1 | . 1 . . Weapon 3 | . . . 3 Highest Loss Streak 8 | . 1 2 8 Average Slot Usage (%) 94 | . 91 98 92 Engine 11 | . 14 10 10 Treads 3 | . . . 7 Leg 34 | . 28 43 30 Storage 21 | . 16 22 22 Energy Gun 6 | . 14 1 6 Ballistic Gun 11 | . 14 11 10 Ballistic Cannon 5 | . . 9 4 Naked Turns . | . . . . Heaviest Build 77 | 11 55 57 77 Greatest Support 40 | 20 20 40 40 Greatest Overweight (x) 7 | 2 2 1 7 Average Overweight (x) 1 | 1 1 1 1 Largest Inventory Capacity 20 | 6 18 18 20 Average Capacity 16 | 5 12 18 18 Most Carried 20 | 3 12 18 20 Average Carried 13 | 1 8 13 17 Final Capacity 20 | 6 18 18 20 Final Carried 19 | 2 12 17 19 Class Distribution -------------------- 59% | Mutant 24% | Scavenger-Mutant 15% | Hauler-Mutant Dominant Class ---------------- Mutant | -10/Materials Mutant | -9/Materials Scavenger-Mutant | -9/Storage Resources | -11 -10 -9 -9 ----------- Run | Scr Mat Mat Sto Matter Collected 820 | 242 94 296 188 Remotely . | . . . . Salvage Created 1184 | . 226 479 479 Parts 90 | . 18 35 37 Haulers Intercepted 1 | . . . 1 Recyclers Shooed . | . . . . Parts Field Recycled . | . . . . Retrieved Matter . | . . . . Parts Self-Destructed . | . . . . Prevented . | . . . . Kills | -11 -10 -9 -9 ------- Run | Scr Mat Mat Sto Combat Hostiles Destroyed 35 | . 7 16 12 Guns 22 | . 7 7 8 Cannons 11 | . . 9 2 AOE 2 | . . . 2 Classes Destroyed 7 | . 2 2 3 Worker 1 | . . 1 . Hauler 1 | . . . 1 Operator 1 | . . . 1 Watcher 1 | . . . 1 Swarmer 9 | . 3 6 . Grunt 17 | . 4 6 7 Sentry 9 | . . 4 5 Best Kill Streak 5 | . 3 5 4 Combat Bots Only 5 | . 3 5 4 Max Kills in Single Turn 3 | . 1 1 3 Gunslinging . | . . . . Exploded 2 | . . . 2 Melee . | . . . . Uniques/NPCs Destroyed . | . . . . Combat | -11 -10 -9 -9 -------- Run | Scr Mat Mat Sto Damage Taken 2266 | . 231 584 1451 Core 392 | . 32 108 252 Absorbed by Shields 21 | . . . 21 Core Remaining (%) 93 | 100 87 . . Volleys Fired 84 | . 17 33 34 Largest 2 | . 2 2 2 Hottest 88 | . 60 59 88 Shots Fired 167 | . 34 66 67 Gun 122 | . 34 33 55 Cannon 45 | . . 33 12 Launcher . | . . . . Special . | . . . . Kinetic 129 | . 17 66 46 Thermal 21 | . . . 21 Explosive . | . . . . Electromagnetic 17 | . 17 . . Robot Hit Streak 17 | . 5 12 17 Robot Miss Streak 4 | . 1 3 4 Penetration Max . | . . . . Secondary Targets . | . . . . Shots Hit Robots 118 | . 22 46 50 Core Hits 67 | . 9 24 34 Critical Hits 1 | . . 1 . Critical Kills 1 | . . 1 . Critical Parts Destroyed . | . . . . Melee Attacks . | . . . . Impact . | . . . . Slashing . | . . . . Piercing . | . . . . Sneak Attacks . | . . . . Combat Hostiles . | . . . . Follow-up Attacks . | . . . . Damage Inflicted 1981 | . 237 833 911 Guns 1152 | . 237 326 589 Cannons 659 | . . 507 152 Explosions 170 | . . . 170 Melee . | . . . . Ramming . | . . . . Kinetic 1403 | . 87 833 483 Thermal 258 | . . . 258 Explosive 170 | . . . 170 Electromagnetic 150 | . 150 . . Impact . | . . . . Slashing . | . . . . Piercing . | . . . . Highest Corruption . | . . . . Average Corruption . | . . . . Corruption Purged . | . . . . Overload Shots . | . . . . Overflow Damage 68 | . . 13 55 Projectiles 13 | . . 13 . Explosions 55 | . . . 55 Melee . | . . . . Knockbacks 4 | . . 4 . Impact . | . . . . Kinetic 4 | . . 4 . Secondary . | . . . . Self-Inflicted Damage 148 | . . . 148 Shots 2 | . . . 2 Rammed . | . . . . Targets Rammed . | . . . . Kicked . | . . . . Crushed . | . . . . Highest Temperature 120 | . 36 5 120 Average Temperature 27 | . 18 2 34 Received Heat Transfer 726 | . 99 156 471 Siege Activations . | . . . . Robots Corrupted . | . . . . Combat Hostiles . | . . . . Parts Fried . | . . . . Impact Corruptions . | . . . . Robots Melted . | . . . . Combat Hostiles . | . . . . Parts Melted 1 | . . . 1 Heat Transferred 325 | . . . 325 Parts Sabotaged . | . . . . Parts Stolen . | . . . . Parts Stripped . | . . . . Power Chain Reactions . | . . . . Missiles Intercepted . | . . . . Alert | -11 -10 -9 -9 ------- Run | Scr Mat Mat Sto Peak Influence 377 | . 220 377 324 Initial 159 | . . 92 159 Average 175 | . 136 166 209 Maximum Alert Level 1 | . 1 1 1 Low Security (%) 65 | 100 54 75 59 Level 1 34 | . 45 24 40 Level 2 . | . . . . Level 3 . | . . . . Level 4 . | . . . . Level 5 . | . . . . High Security . | . . . . Max Security . | . . . . Squads Dispatched 7 | . 2 2 3 Investigation . | . . . . Extermination . | . . . . Reinforcement 6 | . 2 2 2 Assault . | . . . . Garrison 1 | . . . 1 Intercept . | . . . . Construction Impeded . | . . . . Haulers Reinforced . | . . . . Stealth | -11 -10 -9 -9 --------- Run | Scr Mat Mat Sto Distress Signals 5 | . 1 2 2 Communications Jammed . | . . . . Distress Signals . | . . . . Times Spotted 63 | . 12 28 23 Peak Tracking Total 7 | . 5 7 5 Tactical Retreats 3 | . . 1 2 Traps | -11 -10 -9 -9 ------- Run | Scr Mat Mat Sto Traps Triggered 2 | . . . 2 Indirectly . | . . . . Trap Hack Attempts . | . . . . Triggered . | . . . . Disarmed . | . . . . Reprogrammed . | . . . . Reused . | . . . . Traps Extracted . | . . . . Installed . | . . . . Triggered . | . . . . Machines | -11 -10 -9 -9 ---------- Run | Scr Mat Mat Sto Machines Disabled 2 | . . . 2 Max in Single Turn 2 | . . . 2 Machines Sabotaged . | . . . . Garrisons Compromised . | . . . . Overloaded Fab Kills . | . . . . Fab Network Shutdowns . | . . . . Hacking | -11 -10 -9 -9 --------- Run | Scr Mat Mat Sto Machines Accessed 3 | . . 1 2 Terminals 3 | . . 1 2 Fabricators . | . . . . Repair Stations . | . . . . Recycling Units . | . . . . Scanalyzers . | . . . . Garrison Access . | . . . . Total Hacks 3 | . . 1 2 Successful 2 | . . 1 1 Failed 1 | . . . 1 Catastrophic 1 | . . . 1 Database Lockouts . | . . . . Manual . | . . . . Terminals 3 | . . 1 2 Fabricators . | . . . . Repair Stations . | . . . . Recycling Units . | . . . . Scanalyzers . | . . . . Garrison Access . | . . . . Terminal Hacks 2 | . . 1 1 Open Door 1 | . . . 1 Zone Layout 1 | . . 1 . Fabricator Hacks . | . . . . Repair Station Hacks . | . . . . Recycling Unit Hacks . | . . . . Scanalyzer . | . . . . Garrison Access Hacks . | . . . . Unauthorized Hacks . | . . . . Terminals . | . . . . Fabricators . | . . . . Repair Stations . | . . . . Recycling Units . | . . . . Scanalyzers . | . . . . Garrison Access . | . . . . Data Cores Recovered . | . . . . Used . | . . . . Hacking Detections . | . . . . Full Trace Events . | . . . . Feedback Events . | . . . . Feedback Blocked . | . . . . Robot Schematics Acquired . | . . . . Robots Built . | . . . . Matter . | . . . . Time . | . . . . Total Robot Build Rating . | . . . . Part Schematics Acquired . | . . . . Parts Built . | . . . . Matter . | . . . . Time . | . . . . Total Part Build Rating . | . . . . Parts Repaired . | . . . . Time . | . . . . Parts Recycled . | . . . . Recycled Matter . | . . . . Retrieved Matter . | . . . . Retrieved Components . | . . . . Parts Scanalyzed . | . . . . Part Schematics Acquired . | . . . . Parts Damaged . | . . . . Bothacking | -11 -10 -9 -9 ------------ Run | Scr Mat Mat Sto Used RIF Installer . | . . . . Robots Hacked . | . . . . Non-combat . | . . . . Combat . | . . . . Robot Hacks Applied . | . . . . Relay Couplers Released . | . . . . Robots Rewired . | . . . . Allies Hacked . | . . . . Hacks Repelled . | . . . . Allies | -11 -10 -9 -9 -------- Run | Scr Mat Mat Sto Total Allies . | . . . . Largest Group . | . . . . Highest-Rated Group . | . . . . Highest-Rated Ally . | . . . . Total Orders . | . . . . Ally Attacks . | . . . . Total Damage . | . . . . Kills . | . . . . Allies Corrupted . | . . . . Allies Melted . | . . . . Intel | -11 -10 -9 -9 ------- Run | Scr Mat Mat Sto Robot Analysis Total . | . . . . Derelict Logs Recovered . | . . . . Drone Launches . | . . . . Drone Recoveries . | . . . . Exploration | -11 -10 -9 -9 ------------- Run | Scr Mat Mat Sto Turns Passed 2105 | 65 387 700 953 Spaces Moved 1001 | 40 177 337 447 Core 39 | 39 . . . Treads 4 | . . . 4 Legs 958 | 1 177 337 443 Wheels . | . . . . Hover . | . . . . Flight . | . . . . Fastest Speed 50 | 50 120 150 150 Average Speed 158 | 135 155 150 169 Slowest Speed 330 | 150 180 150 330 Overloaded Moves . | . . . . Propulsion Burnouts . | . . . . Robots Hopped . | . . . . Cave-ins Triggered . | . . . . Exploration Rate (%) 28 | 4 29 35 46 Regions Visited 3 Branch Regions 1 Pre-discovered Areas . | . . . . Known Exits Taken . | . . . . Unknown Exits Taken 3 | 1 1 1 . Scrap Searched . | . . . . Spaces Dug . | . . . . Terrain Destroyed 18 | . . 3 15 Melee . | . . . . Projectile 3 | . . 3 . AOE 15 | . . . 15 Terrain Rammed . | . . . . Walls Destroyed . | . . . . Machines Disabled . | . . . . Actions | -11 -10 -9 -9 --------- Run | Scr Mat Mat Sto Total 1346 | 48 255 467 576 Wait 179 | . 47 74 58 Move 998 | 39 176 336 447 Hop . | . . . . Pick Up 35 | 3 10 12 10 Fast Attach 14 | 5 2 2 5 Attach 9 | 1 1 5 2 Detach 2 | . 1 1 . Swap 5 | . 1 . 4 Drop 11 | . . 4 7 Fire 84 | . 17 33 34 Melee . | . . . . Ram . | . . . . Kick . | . . . . Crush . | . . . . Escape Stasis 9 | . . . 9 Rewire . | . . . . Trap . | . . . . Miscellaneous . | . . . . Route ------- -11/Scrapyard -10/Materials -9/Materials -9/Storage History --------- Turn | Location | Event 29 | -11/Scrapyard | Discovered new exit (range 15) 66 | -11/Scrapyard | Entered Materials 313 | -10/Materials | Build established: Mutant 366 | -10/Materials | Discovered new exit (range 13) 453 | -10/Materials | Entered another Materials area 453 | -9/Materials | Evolved 2 slots: Propulsion x2 1076 | -9/Materials | Discovered new exit (range 15) 1153 | -9/Materials | Entered Storage 2055 | -9/Storage | Garrison activated, responded to threat 2078 | -9/Storage | Build established: Hauler-Mutant 2082 | -9/Storage | Core integrity fell below 50% 2103 | -9/Storage | Core integrity fell below 20% 2106 | -9/Storage | Self-destructed Last Messages --------------- Destroyed Hover Unit. W-16 Scout destroyed. Compression Vault explodes. G-34 Mercenary destroyed. Spread Laser destroyed. Destroyed Spread Laser. G-34 Mercenary destroyed. Acquired Aluminum Leg. U-05 Engineer builds a Wall. Acquired Aluminum Leg. The unstable cave ceiling collapses. Lgt. Treads destroyed. Hvy. Assault Rifle destroyed. U-05 Engineer builds a Wall. Aluminum Leg destroyed. Imp. Ion Engine destroyed. K-01 Serf collects debris. Compression Vault explodes. Aluminum Leg destroyed. The unstable cave ceiling collapses. Map ----- +----------------------------------------------------+ | ?????????????????????????????????????????????????? | | ?????????????????????????????????????????????????? | | ?????????????????????????????????????????????????? | | ????????????????????????????? ???????????????????? | | ????????????????????????????? ?????????????????? | | ????????????????????????????? #????????????????? | | ??????????????????????#+#??? #????????????????? | | ?????????????????????? ??? #????????????????? | | ??????????????????????" ??? ##???????????????? | | ??????????????????????? ??? ???????????????? | | ??????????????????????? ??? #????????????????? | | ???????????????????????? ??? #????????????????? | | ???????????????????????? ### #????????????????? | | ?????????????????????#### k # #????????????????? | | ?????????????????????# #######??????????? | | ?????????????????????# % gg g + ???????????? | | ?????????????????????# % #??????????????? | | ?????????????????????# ! * k #??????????????? | | ?????????????????????# #??????????????? | | ?????????????????????# u #??????????????? | | ?????????????????????# # #??????????????? | | ?????????????????????# # #??????????????? | | ?????????????????????# # #??????????????? | | ?????????????????????##### ## #??????????????? | | ??????????????????????# # #??????????????? | | ??????????????????????# @ #??????????????? | | ??????????????????????# #??????????????? | | ??????????????????????# #??????????????? | | ??????????????????????# #?????????? ?? | | ??????????????????????## #?????????? ?? | | ??????????????????????? # #?????????? #? | | ??????????????????????? # """ # #?????????+ #? | | ?????????????????????? # """ # #?????????# #? | | ?????????????????????? # """ # #?????????# #? | | ??????????????????????### # #?????????# #? | | ????????????????????????# # #?????????# #? | | ????????????????????????### ### #?????????# #? | | ??????????????????????????###?# #?????????# #? | | ???????????????????##?????????# #?????????# #? | | ??????????????##### #?######### #?????????# #? | | ??????????????# ! #?#!! # # #?????????# #? | | ??????????????# %"""#?#!! " # #?????????# #? | | ??????????????# ="""#?#!! / #?????????# #? | | ??????????????# """#?# " # #?????????# #? | | ??????????????# """#?#!!! #T## #?????????# ## | | ??????????????# """#?#!!! #### #?????????# # | | ??????????????# #?######??# #?????????# # | | ???????????##?###+###????????## ##????????# # | | ???????????#T## ##########]]] #????????# + | | ???????????" # [%= %[= #????????# # | +----------------------------------------------------+ Best States ------------- Heat Dissipation 35 Energy Generation 12 Energy Capacity 265 Matter Stores 300 Matter Capacity 300 Sight Range 16 Terrain Scan Density 10 ECM Strength 1 Evasion (%) 40 Recoil Reduction 1 Item Schematics ----------------- None Robot Schematics ------------------ None Fabricated ------------ Nothing Alien Tech Used ----------------- None Achievements -------------- None Challenges ------------ None Game ------ Seed BombMinesnifferGun Manual? 0 Play Time 00:29:09 Cumulative 27.6 hours Start 2021.01.14 @ 05:43:13 End 2021.01.14 @ 06:15:02 Sessions 1 Manual Loads 0 Difficulty Rogue Special Mode None Game No. 37 Rogue 37 Adventurer 0 Explorer 0 Win Type - Total 0 Types 0/0/0/0/0/0/0/0/0 Lore% 10 Gallery% 27 Achievement% 16 Wizard Run 0 Options --------- ASCII 0 Keyboard 0 Movement Numpad Keybinds 0 Fullscreen 1 Font 14/Dina Map View 76x50 Tactical HUD 0 Map Filters NONE Filters NONE Steam 1 RUN: 5283b178-8499-4996-a0dd-086b8ab70f5e